bitfinex-derivatives/quotes_ETHF0:USTF0_20250330
["timestamp","ask_amount","ask_price","bid_price","bid_amount"]
[1743323637567,1.08466,1844.4,1844.3,3.2078]
[1743323638074,1.08466,1844.4,1844.3,3.935]
[1743323638971,1.08466,1844.4,1844.3,3.2078]
[1743323639275,1.08472,1844.3,1844.2,3.4491493]
[1743323639478,1.08472,1844.3,1844.2,0.0081493]
[1743323647572,1.83482,1844.3,1844.2,0.0081493]
[1743323647778,2.53052,1844.3,1844.2,0.0081493]
[1743323648783,1.83482,1844.3,1844.2,0.0081493]
[1743323651085,1.08472,1844.3,1844.2,4.6795493]
[1743323652887,1.08472,1844.3,1844.2,0.0081493]
[1743323653185,1.82082,1844.3,1844.2,0.0081493]
[1743323653388,3.21212,1844.3,1844.2,0.0081493]
[1743323660193,2.47602,1844.3,1844.2,0.0081493]
[1743323660889,2.47602,1844.3,1844.2,1.3872493]
[1743323662592,2.47602,1844.3,1844.2,0.0081493]
[1743323663181,1.08472,1844.3,1844.2,0.0081493]
[1743323663387,2.48382,1844.3,1844.2,0.0081493]
[1743323665887,3.98212,1844.3,1844.2,0.0081493]
[1743323667198,3.23452,1844.3,1844.2,0.0081493]
[1743323675207,3.447,1844.7,1844.2,0.0081493]
[1743323675208,3.2078,1845.0,1844.2,2.5081493]
[1743323675507,2.52001,1844.7,1844.5,1.08459]
[1743323675700,2.52001,1844.7,1844.6,6.3823]
[1743323676304,1.08439,1844.9,1844.7,1.08444]
[1743323676502,2.51989,1844.9,1844.8,1.4866]
[1743323678404,1.08449,1844.7,1844.6,4.8957]
[1743323678707,1.08449,1844.7,1844.6,6.2664]
[1743323679502,1.4853,1844.8,1844.6,7.35094]
[1743323679503,2.56977,1844.8,1844.6,7.35094]
[1743323679710,2.56977,1844.8,1844.7,1.3707]
[1743323681812,2.56977,1844.8,1844.6,9.18803]
[1743323681813,1.08449,1844.7,1844.6,8.1035]
[1743323682004,2.54559,1844.7,1844.6,4.8957]
[1743323683107,2.54559,1844.7,1844.6,6.314]
[1743323685113,2.54559,1844.7,1844.6,2.866]
[1743323685313,2.54559,1844.7,1844.6,6.309]
[1743323687713,2.54559,1844.7,1844.6,1.4477]
[1743323689309,2.54559,1844.7,1844.6,2.9004]
[1743323689710,1.08454,1844.6,1844.5,3.2078]
[1743323689911,3.24934,1844.6,1844.5,6.6488]
[1743323691112,3.24934,1844.6,1844.5,8.1467]
[1743323693818,3.24934,1844.6,1844.5,4.9389]
[1743323694013,2.51004,1844.6,1844.5,4.9389]
[1743323695118,2.51004,1844.6,1844.5,1.4979]
[1743323695321,2.51004,1844.6,1844.5,3.437]
[1743323696713,2.51004,1844.6,1844.5,4.8812]
[1743323703415,1.4255,1844.6,1844.5,5.9658]
[1743323703610,2.51004,1844.6,1844.5,4.8812]
[1743323704015,1.4255,1844.6,1844.5,4.8812]
[1743323704314,1.08451,1844.7,1844.5,4.8812]
[1743323704512,2.53141,1844.7,1844.6,2.1469]
[1743323704716,2.53141,1844.7,1844.6,2.8274]
[1743323707523,2.53141,1844.7,1844.6,3.91194]
[1743323707820,1.4469,1844.7,1844.6,3.91194]
[1743323709525,4.29221,1844.9,1844.7,1.08445]
[1743323709724,5.66321,1844.9,1844.7,2.47955]
[1743323709926,4.29221,1844.9,1844.8,1.3951]
[1743323710220,3.2078,1844.9,1844.8,5.91153]
[1743323710925,1.08423,1845.2,1845.0,1.08428]
[1743323711127,3.2078,1845.3,1845.1,6.2697]
[1743323711329,4.29193,1845.3,1845.2,1.3951]
[1743323712723,3.2078,1845.3,1845.2,1.3951]
[1743323713320,0.7444,1845.4,1845.2,1.3951]
[1743323713921,3.2078,1845.5,1845.2,2.47926]
[1743323714316,3.2078,1845.5,1845.3,1.4348]
[1743323716220,3.2078,1845.5,1845.3,2.51893]
[1743323717328,3.2078,1845.5,1845.3,1.4348]
[1743323717522,3.2078,1845.5,1845.3,2.51889]
[1743323718022,3.2078,1845.5,1845.4,1.08407]
[1743323720623,4.29184,1845.5,1845.3,2.51891]
[1743323720823,3.2078,1845.5,1845.4,1.08407]
[1743323721019,5.65893,1845.5,1845.3,2.5189]
[1743323721330,1.3671,1845.4,1845.3,2.51893]
[1743323726435,1.3671,1845.4,1845.3,1.08413]
[1743323728432,1.3671,1845.4,1845.2,1.4418493]
[1743323728433,2.45117,1845.4,1845.2,1.4418493]
[1743323728639,2.45117,1845.4,1845.2,2.5259993]
[1743323728840,1.4395,1845.3,1845.2,2.5259993]
[1743323729138,2.52363,1845.3,1845.2,3.4351493]
[1743323729339,3.97373,1845.3,1845.2,0.0081493]
[1743323730237,2.1699,1845.3,1845.2,1.0923393]
[1743323730437,1.4395,1845.3,1845.2,2.4959393]
[1743323730641,1.4395,1845.3,1845.2,3.2170393]
[1743323738641,3.2078,1845.5,1845.4,1.08407]
[1743323739052,3.2078,1845.5,1845.4,4.51307]
[1743323739242,23.39361518,1845.7,1845.6,1.08396]
[1743323739541,23.39361518,1845.7,1845.6,4.29176]
[1743323739542,22.26581518,1845.7,1845.6,4.29176]
[1743323739939,23.34971518,1845.7,1845.6,3.437]
[1743323740245,22.26581518,1845.7,1845.6,3.2078]
[1743323740545,22.26581518,1845.7,1845.6,4.29176]
[1743323740947,26.13531518,1845.7,1845.6,3.2078]
[1743323741339,2.7856,1845.7,1845.6,5.65286]
[1743323742242,2.7856,1845.7,1845.6,4.5689]
[1743323742452,2.7856,1845.7,1845.6,5.65286]
[1743323743147,2.7856,1845.7,1845.6,4.5689]
[1743323743734,3.8695,1845.7,1845.6,4.5689]
[1743323743939,2.7856,1845.7,1845.6,4.5689]
[1743323744241,2.7856,1845.7,1845.6,5.65286]
[1743323745342,2.7856,1845.7,1845.6,4.5689]
[1743323745548,3.8695,1845.7,1845.6,4.5689]
[1743323746047,2.7856,1845.7,1845.6,5.65286]
[1743323746248,3.8695,1845.7,1845.6,4.5689]
[1743323746945,3.8695,1845.7,1845.6,6.6498]
[1743323747741,2.7856,1845.7,1845.6,6.6498]
[1743323748045,2.7856,1845.7,1845.6,9.12096]
[1743323749554,3.8695,1845.7,1845.6,9.12096]
[1743323749749,2.7856,1845.7,1845.6,9.12096]
[1743323751349,3.8695,1845.7,1845.6,9.12096]
[1743323752257,3.8695,1845.7,1845.6,8.037]
[1743323752455,3.8695,1845.7,1845.6,6.6498]
[1743323754557,3.8695,1845.7,1845.6,3.442]
[1743323757156,3.8695,1845.7,1845.6,6.6498]
[1743323758351,3.8695,1845.7,1845.6,8.0304]
[1743323758547,2.7856,1845.7,1845.6,9.11436]
[1743323759657,3.8695,1845.7,1845.6,8.0304]
[1743323760462,4.29155,1846.0,1845.6,8.0304]
[1743323760760,26.06625592,1846.4,1846.0,1.08372]
[1743323760761,1.4491,1846.1,1846.0,1.08372]
[1743323760958,0.7164,1846.1,1846.0,2.58352]
[1743323761159,1.4602,1846.2,1846.1,1.08366]
[1743323761462,2.5438,1846.2,1846.1,4.7076]
[1743323761662,1.4602,1846.2,1846.1,5.79126]
[1743323762865,2.5438,1846.2,1846.1,4.7076]
[1743323763459,1.4602,1846.2,1846.1,5.79126]
[1743323763757,2.5438,1846.2,1846.1,4.7076]
[1743323766265,2.5438,1846.2,1846.1,3.2078]
[1743323767668,1.08372,1846.0,1845.9,6.6488]
[1743323767960,1.08372,1846.0,1845.9,3.2078]
[1743323768166,1.08378,1845.9,1845.8,6.6498]
[1743323768365,1.82988,1845.9,1845.8,6.6498]
[1743323768762,1.82988,1845.9,1845.8,3.2078]
[1743323768971,2.54118,1845.9,1845.8,3.2078]
[1743323779172,2.70978,1845.7,1845.3,25.0]
[1743323779361,1.08407,1845.4,1845.3,25.0]
[1743323779563,4.29187,1845.4,1845.3,25.0]
[1743323779974,6.79187,1845.4,1845.3,21.294]
[1743323780473,8.27367,1845.4,1845.3,19.039]
[1743323782779,8.71159388,1845.4,1845.3,19.039]
[1743323785479,8.27367,1845.4,1845.3,19.039]
[1743323789974,8.27367,1845.4,1845.3,18.6634]
[1743323791384,8.27367,1845.4,1845.3,18.2728]
[1743323792285,8.27367,1845.4,1845.3,2.46179624]
[1743323794286,8.27367,1845.4,1845.3,1.22674624]
[1743323794477,1.08413,1845.3,1845.2,0.0081493]
[1743323794680,3.28013,1845.3,1845.2,0.0081493]
[1743323794988,5.78013,1845.3,1845.2,9.3e-06]
[1743323795280,1.08437,1844.9,1844.8,1.3808]
[1743323795583,1.08449,1844.7,1844.6,3.2078]
[1743323796974,1.08449,1844.7,1844.6,4.5761]
[1743323797788,2.54829,1844.7,1844.6,4.5761]
[1743323798389,3.28569,1844.7,1844.6,4.5761]
[1743323798579,6.49349,1844.7,1844.6,1.3683]
[1743323799281,1.08454,1844.6,1844.5,0.00812656]
[1743323799484,2.54834,1844.6,1844.5,0.00812656]
[1743323799687,5.04834,1844.6,1844.5,0.00812656]
[1743323799880,5.04834,1844.6,1844.5,6.56e-06]
[1743323800586,1.0849,1844.0,1843.9,1.4527]
[1743323801985,1.0849,1844.0,1843.9,2.8936]
[1743323805686,4.2927,1844.0,1843.9,1.4409]
[1743323805887,4.99,1844.0,1843.9,1.4409]
[1743323807087,8.442,1844.0,1843.9,1.4409]
[1743323808784,9.8571,1844.0,1842.8,53.3098]
[1743323808990,1.08537,1843.2,1843.1,1.384]
[1743323810084,1.08537,1843.2,1843.1,8.0898]
[1743323811186,3.2078,1843.5,1843.2,1.08537]
[1743323811187,1.08521,1843.5,1843.2,1.08537]
[1743323811489,5.92013,1844.0,1843.2,1.08537]
[1743323811490,5.92013,1844.0,1843.4,3.2078]
[1743323811699,1.08513,1843.6,1843.5,2.121]
[1743323811996,1.08511,1843.7,1843.5,0.7081]
[1743323812196,1.08511,1843.7,1843.6,3.2078]
[1743323816597,0.00812656,1843.8,1843.6,3.2078]
[1743323816796,1.08511,1843.7,1843.6,3.2078]
[1743323816992,0.00812656,1843.8,1843.6,3.2078]
[1743323817199,1.08511,1843.7,1843.6,3.2078]
[1743323817404,1.08511,1843.7,1843.6,6.7078]
[1743323817895,1.09317656,1843.8,1843.6,7.79293]
[1743323818094,1.09317656,1843.8,1843.6,6.7078]
[1743323818891,1.08507,1843.7,1843.6,6.7078]
[1743323819303,1.08507,1843.7,1843.6,9.2078]
[1743323819592,1.08507,1843.7,1843.6,6.7078]
[1743323824297,1.08507,1843.7,1843.6,6.7058]
[1743323826305,1.09318656,1843.8,1843.6,7.7909]
[1743323826810,1.09318656,1843.8,1843.7,1.08507]
[1743323827405,1.09318656,1843.8,1843.6,7.79089]
[1743323827609,0.00812656,1843.8,1843.7,1.08507]
[1743323828409,1.09314656,1843.8,1843.7,1.08507]
[1743323828803,0.00812656,1843.8,1843.7,1.08507]
[1743323830410,0.6845,1844.2,1844.0,1.08486]
[1743323830611,0.6845,1844.2,1844.0,4.58286]
[1743323830806,0.6845,1844.2,1844.1,4.29264]
[1743323831013,0.6845,1844.2,1844.1,5.66284]
[1743323831211,1.76928,1844.2,1844.1,4.578]
[1743323832915,1.76928,1844.2,1844.1,8.076]
[1743323834114,0.6845,1844.2,1844.1,9.16084]
[1743323835316,1.76928,1844.2,1844.1,8.076]
[1743323835516,3.21378,1844.2,1844.1,8.076]
[1743323836315,3.21378,1844.2,1844.1,3.2078]
[1743323836516,3.21378,1844.2,1844.1,2.0794]
[1743323838122,1.0849,1844.0,1843.9,3.498]
[1743323838625,1.08496,1843.9,1843.8,3.2078]
[1743323839121,1.08494,1844.0,1843.8,3.2078]
[1743323839312,1.45,1844.1,1843.8,4.6239]
[1743323839517,2.53488,1844.1,1843.9,1.4795]
[1743323839822,1.0849,1844.0,1843.9,1.4795]
[1743323840020,2.4868,1844.0,1843.9,1.4795]
[1743323842325,0.7434,1844.1,1844.0,1.0849]
[1743323842526,1.82824,1844.1,1844.0,6.7018]
[1743323842726,3.21621,1844.2,1844.1,1.08484]
[1743323842922,3.21621,1844.2,1844.1,1.3832]
[1743323844428,0.00807351,1844.3,1844.2,1.08478]
[1743323844721,3.22516,1844.6,1844.4,1.08463]
[1743323844927,3.22516,1844.6,1844.5,1.3832]
[1743323847231,2.1406,1844.6,1844.5,2.4678]
[1743323848426,0.00812656,1844.7,1844.6,1.08454]
[1743323848730,0.00812656,1844.7,1844.6,2.49144]
[1743323849130,1.47152656,1844.7,1844.6,2.49144]
[1743323849431,0.00812656,1844.7,1844.6,2.49144]
[1743323851721,0.00812656,1844.7,1844.6,5.69924]
[1743323855930,1.45692656,1844.7,1844.6,5.69924]
[1743323856337,1.45692656,1844.7,1844.6,6.24164]
[1743323858832,1.08462,1844.5,1844.3,4.83487]
[1743323859036,1.08459,1844.6,1844.4,6.05744]
[1743323859438,1.08459,1844.6,1844.5,1.4878]
[1743323860128,1.08459,1844.6,1844.5,2.5724]
[1743323860333,1.08459,1844.6,1844.5,9.2662]
[1743323860528,1.08459,1844.6,1844.5,8.1816]
[1743323863240,1.09264656,1844.7,1844.5,6.05836]
[1743323863441,1.09264656,1844.7,1844.6,1.3842]
[1743323863643,1.09261656,1844.7,1844.6,4.592]
[1743323865136,0.00812656,1844.7,1844.6,4.592]
[1743323866040,0.00812656,1844.7,1844.6,5.67654]
[1743323868545,0.00812656,1844.7,1844.6,4.592]
[1743323869133,1.09261656,1844.7,1844.6,4.592]
[1743323869343,1.09261656,1844.7,1844.6,1.3842]
[1743323872247,1.09261656,1844.7,1844.5,3.486]
[1743323872446,3.97944,1844.6,1844.5,4.9577]
[1743323872749,3.97947,1844.6,1844.4,7.76946]
[1743323872946,1.4392,1844.5,1844.4,9.24116]
[1743323876747,2.54025,1844.6,1844.5,1.0846]
[1743323876948,4.03095,1844.6,1844.5,2.5418]
[1743323880247,2.9464,1844.6,1844.5,2.5418]
[1743323881253,1.4557,1844.6,1844.5,2.5418]
[1743323881846,2.8937,1844.6,1844.5,2.5418]
[1743323884456,3.97824,1844.6,1844.5,1.4572]
[1743323885147,3.97824,1844.6,1844.5,2.5418]
[1743323886342,3.97824,1844.6,1844.5,1.4572]
[1743323886542,3.97824,1844.6,1844.5,2.5418]
[1743323887653,3.97824,1844.6,1844.5,4.9242]
[1743323891153,3.97824,1844.6,1844.5,4.9242]
[1743323891553,2.8937,1844.6,1844.5,6.0088]
[1743323891746,0.00812656,1844.7,1844.6,1.08454]
[1743323891953,0.00812656,1844.7,1844.6,5.78844]
[1743323892257,1.42322656,1844.7,1844.6,5.78844]
[1743323892458,2.13902656,1844.7,1844.6,5.78844]
[1743323894461,2.13902656,1844.7,1844.6,2.58064]
[1743323894658,0.00812656,1844.7,1844.6,2.58064]
[1743323894860,0.7155,1844.9,1844.8,1.08443]
[1743323895255,1.82443,1845.2,1845.0,1.08429]
[1743323895459,2.56169,1845.2,1845.1,1.4738]
[1743323896260,1.4775,1845.2,1845.1,1.4738]
[1743323896560,1.08404,1845.5,1845.2,1.08414]
[1743323896753,3.92404,1845.5,1845.3,1.4738]
[1743323896959,3.92404,1845.5,1845.3,2.5579]
[1743323897160,1.4159,1845.4,1845.3,2.5579]
[1743323897358,1.4159,1845.4,1845.3,1.0841]
[1743323897549,6.63611145,1846.0,1845.3,3.2078]
[1743323897550,3.2078,1845.8,1845.3,3.2078]
[1743323897751,5.3062,1845.4,1845.0,0.00812656]
[1743323897951,1.08425,1845.1,1845.0,0.00812656]
[1743323898758,2.50391,1845.2,1845.0,0.00812656]
[1743323899162,1.4197,1845.1,1845.0,0.00812656]
[1743323899962,0.6787,1845.4,1845.2,1.08415]
[1743323900260,2.1649,1845.3,1845.2,1.08415]
[1743323900453,2.1649,1845.3,1845.1,3.2078]
[1743323900454,3.24903,1845.3,1845.1,4.29201]
[1743323900658,1.4026,1845.2,1845.1,4.29201]
[1743323901055,3.2078,1845.6,1845.1,3.2078]
[1743323901261,2.8872,1845.6,1845.5,1.08402]
[1743323901566,3.97116,1845.6,1845.4,1.08404]
[1743323901762,1.4026,1845.5,1845.4,1.08404]
[1743323902465,0.7394,1845.6,1845.5,1.08402]
[1743323902659,0.7394,1845.6,1845.5,4.59302]
[1743323903965,1.82336,1845.6,1845.5,3.509]
[1743323904167,4.03036,1845.6,1845.5,3.509]
[1743323904359,1.08402,1845.5,1845.3,4.2919]
[1743323904564,2.54072,1845.5,1845.4,3.514]
[1743323904764,2.54072,1845.5,1845.3,4.2919]
[1743323904965,2.54077,1845.4,1845.3,3.2078]
[1743323905166,2.54077,1845.4,1845.3,6.7228]
[1743323906070,2.54077,1845.4,1845.3,3.515]
[1743323906966,1.08419,1845.2,1845.1,6.7228]
[1743323907164,1.08419,1845.2,1845.1,3.2078]
[1743323907358,1.08419,1845.2,1845.1,6.7228]
[1743323907562,1.08425,1845.1,1845.0,0.00812656]
[1743323907962,2.52155,1845.1,1845.0,0.00812656]
[1743323911369,2.52155,1845.1,1845.0,1.50402656]
[1743323912272,1.4373,1845.1,1845.0,1.50402656]
[1743323912569,2.52155,1845.1,1845.0,1.50402656]
[1743323914173,1.4373,1845.1,1845.0,2.58833656]
[1743323915773,2.52155,1845.1,1845.0,2.58833656]
[1743323915975,2.52155,1845.1,1845.0,1.50402656]
[1743323918979,2.52155,1845.1,1845.0,0.00812656]
[1743323922384,1.08443,1844.8,1844.7,3.51]
[1743323923075,1.08443,1844.8,1844.7,4.8713]
[1743323923780,3.17653,1844.8,1844.7,4.8713]
[1743323925780,2.8386,1844.8,1844.7,5.95579]
[1743323925971,1.09252656,1844.9,1844.8,1.08443]
[1743323925972,0.00812656,1844.9,1844.8,1.08443]
[1743323926177,1.09249656,1844.9,1844.8,1.4052]
[1743323927385,0.00812656,1844.9,1844.8,2.48963]
[1743323928681,1.09249656,1844.9,1844.8,2.48963]
[1743323929985,1.09249656,1844.9,1844.8,1.4052]
[1743323931782,0.00812656,1844.9,1844.8,5.69743]
[1743323932585,1.09249656,1844.9,1844.8,5.69743]
[1743323932884,0.00812656,1844.9,1844.8,5.69743]
[1743323933986,1.09249656,1844.9,1844.8,5.69743]
[1743323934488,0.00812656,1844.9,1844.8,5.69743]
[1743323937184,2.56419656,1844.9,1844.8,5.69743]
[1743323938584,1.47982656,1844.9,1844.8,5.69743]
[1743323939182,1.47982656,1844.9,1844.8,2.48963]
[1743323939382,2.56419656,1844.9,1844.8,5.69743]
[1743323940284,2.56419656,1844.9,1844.8,4.613]
[1743323940486,2.56419656,1844.9,1844.6,0.55052656]
[1743323940487,1.47982656,1844.9,1844.7,3.495]
[1743323940687,3.91363,1844.8,1844.7,4.9476]
[1743323944892,1.08449,1844.7,1844.6,7.79246656]
[1743323945190,2.46239,1844.7,1844.6,9.26806656]
[1743323947302,2.46239,1844.7,1844.6,8.18352656]
[1743323947901,2.46239,1844.7,1844.6,9.26806656]
[1743323948401,2.46239,1844.7,1844.6,8.18352656]
[1743323948899,2.46239,1844.7,1844.6,0.00812656]
[1743323953105,4.08915,1844.7,1844.3,50.078]
[1743323953306,1.08472,1844.3,1844.2,6.6948]
[1743323953502,1.08472,1844.3,1844.2,3.2078]
[1743323954102,2.58262,1844.3,1844.2,3.2078]
[1743323956307,3.26432,1844.3,1844.2,3.2078]
[1743323957207,3.26432,1844.3,1844.2,4.6658]
[1743323957706,1.08472,1844.3,1844.2,4.6658]
[1743323962912,1.08472,1844.3,1844.2,8.1498]
[1743323965111,1.08472,1844.3,1844.2,4.942]
[1743323965312,1.08472,1844.3,1844.2,8.1498]
[1743323970016,1.08472,1844.3,1844.2,9.23458]
[1743323970517,1.08472,1844.3,1844.2,8.1498]
[1743323970717,1.08472,1844.3,1844.2,9.23458]
[1743323971014,1.08472,1844.3,1844.2,8.1498]
[1743323971420,3.18928,1844.4,1844.2,9.23454]
[1743323971615,0.6968,1844.6,1844.3,2.4452]
[1743323971921,1.0846,1844.5,1844.4,1.3605]
[1743323972421,3.2078,1844.8,1844.7,1.08449]
[1743323972716,0.00812656,1844.9,1844.7,4.56945]
[1743323972905,1.09249656,1844.9,1844.8,5.9665]
[1743323974519,1.09249656,1844.9,1844.8,5.2758]
[1743323974922,2.46879656,1844.9,1844.8,5.2758]
[1743323975219,2.46879656,1844.9,1844.8,6.36023]
[1743323975624,2.46879656,1844.9,1844.8,5.2758]
[1743323975921,1.38442656,1844.9,1844.8,6.36023]
[1743323978019,2.46879656,1844.9,1844.8,1.3605]
[1743323979416,1.08443,1844.8,1844.7,6.6928]
[1743323979620,3.21043,1844.8,1844.7,6.6928]
[1743323980617,3.21043,1844.8,1844.7,8.0843]
[1743323983618,2.126,1844.8,1844.7,8.0843]
[1743323983822,3.21043,1844.8,1844.7,8.0843]
[1743323986726,3.21043,1844.8,1844.7,3.2078]
[1743323987927,3.21043,1844.8,1844.7,4.6212]
[1743323988429,1.08443,1844.8,1844.7,5.70569]
[1743323988625,3.25623,1844.8,1844.7,5.70569]
[1743323989025,1.09254656,1844.9,1844.8,1.08443]
[1743323989225,1.09254656,1844.9,1844.8,2.46073]
[1743323989626,2.56524656,1844.9,1844.8,1.3763]
[1743323994728,1.08443,1844.8,1844.7,3.2078]
[1743323994925,2.49123,1844.8,1844.7,8.1358]
[1743323995121,2.49123,1844.8,1844.7,6.6858]
[1743323995325,2.49123,1844.8,1844.7,3.2078]
[1743323996530,1.08449,1844.7,1844.6,1.45]
[1743323996832,3.95479,1844.7,1844.6,4.6578]
[1743323997422,3.95479,1844.7,1844.6,5.74234]
[1743323998034,3.95479,1844.7,1844.6,4.6578]
[1743323998934,3.95479,1844.7,1844.6,3.2078]
[1743324004338,1.08454,1844.6,1844.5,5.95439]
[1743324004540,2.44904,1844.6,1844.5,4.8698]
[1743324004929,2.44904,1844.6,1844.5,5.9544]
[1743324005833,2.44904,1844.6,1844.5,4.8698]
[1743324007234,2.44904,1844.6,1844.5,8.0776]
[1743324007838,2.44904,1844.6,1844.5,9.1622]
[1743324008040,2.44904,1844.6,1844.5,8.0776]
[1743324008636,2.44904,1844.6,1844.5,6.6858]
[1743324009033,2.44904,1844.6,1844.3,1.4468]
[1743324009034,1.08466,1844.4,1844.3,1.4468]
[1743324009335,1.08478,1844.2,1844.1,3.21592656]
[1743324009643,1.08478,1844.2,1844.1,4.66272656]
[1743324010035,2.53698,1844.2,1844.1,4.66272656]
[1743324014044,2.55636,1844.3,1844.1,5.74753656]
[1743324014246,2.55636,1844.3,1844.2,1.4476]
[1743324021447,2.55636,1844.3,1844.1,0.00812656]
[1743324021448,1.08478,1844.2,1844.1,0.00812656]
[1743324021753,2.47728,1844.2,1844.1,0.00812656]
[1743324030054,1.0849,1844.0,1843.9,3.2078]
[1743324030646,2.5027,1844.0,1843.9,3.2078]
[1743324035054,1.08496,1843.9,1843.8,1.43782656]
[1743324035253,2.47716,1843.9,1843.8,4.64562656]
[1743324040561,1.08496,1843.9,1843.8,4.64562656]
[1743324040762,1.08496,1843.9,1843.8,5.35692656]
[1743324041864,1.08496,1843.9,1843.8,4.64562656]
[1743324044065,1.08496,1843.9,1843.8,1.43782656]
[1743324044672,1.81236,1843.9,1843.8,1.43782656]
[1743324045265,2.51446,1843.9,1843.8,1.43782656]
[1743324054176,1.08494,1844.0,1843.8,5.73060656]
[1743324054378,1.08494,1844.0,1843.8,6.44380656]
[1743324054573,1.08494,1844.0,1843.9,1.3926]
[1743324064285,1.08496,1843.9,1843.8,0.00812656]
[1743324064490,3.87506,1843.9,1843.8,0.00812656]
[1743324076102,3.87506,1843.9,1843.8,1.48012656]
[1743324078797,1.08496,1843.9,1843.8,3.98384656]
[1743324079003,1.08494,1844.0,1843.9,1.08496]
[1743324079202,1.0848,1844.2,1844.0,1.08488]
[1743324079404,1.0848,1844.2,1844.1,6.46064]
[1743324079793,1.76876,1844.3,1844.1,9.90064]
[1743324079997,1.08476,1844.3,1844.2,1.4165]
[1743324080199,1.08476,1844.3,1844.2,2.1297]
[1743324082698,1.3883,1844.5,1844.2,2.1297]
[1743324082900,1.08472,1844.3,1844.2,0.7132]
[1743324083302,1.08472,1844.3,1844.2,3.921]
[1743324087806,1.08472,1844.3,1844.2,0.7132]
[1743324088307,1.08472,1844.3,1844.2,3.921]
[1743324091813,1.08472,1844.3,1844.2,0.7132]
[1743324092112,1.08472,1844.3,1844.2,3.921]
[1743324093013,1.08472,1844.3,1844.2,0.7132]
[1743324093213,1.08472,1844.3,1844.2,3.921]
[1743324094116,1.08472,1844.3,1844.2,5.00578]
[1743324095915,1.08472,1844.3,1844.2,3.921]
[1743324096113,1.08472,1844.3,1844.2,0.7132]
[1743324096318,1.08472,1844.3,1844.2,3.921]
[1743324097617,1.08472,1844.3,1844.2,0.7132]
[1743324098217,1.08472,1844.3,1844.2,3.921]
[1743324098616,1.08472,1844.3,1844.2,0.7132]
[1743324099017,1.08472,1844.3,1844.2,3.921]
[1743324099712,1.08472,1844.3,1844.2,7.351]
[1743324099912,1.08472,1844.3,1844.2,6.6378]
[1743324100718,1.08472,1844.3,1844.2,7.72258]
[1743324101317,2.56201,1844.4,1844.2,9.13348]
[1743324101520,2.56201,1844.4,1844.3,1.4533]
[1743324105721,9.34848,1845.1,1844.5,1.08456]
[1743324105919,3.2482,1844.7,1844.6,4.8653]
[1743324106121,3.2482,1844.7,1844.6,8.0731]
[1743324108425,3.2482,1844.7,1844.6,4.8653]
[1743324108620,3.2482,1844.7,1844.6,8.0731]
[1743324109122,1.0846,1844.5,1844.4,3.43]
[1743324109420,1.0846,1844.5,1844.4,4.8012]
[1743324109821,1.7824,1844.5,1844.4,4.8012]
[1743324110022,0.6978,1844.5,1844.4,5.88586]
[1743324110720,1.3725,1844.6,1844.5,1.0846]
[1743324111024,1.3725,1844.6,1844.5,5.6983]
[1743324112527,1.3725,1844.6,1844.5,2.4905]
[1743324112719,1.3725,1844.6,1844.5,5.6983]
[1743324115431,2.45704,1844.6,1844.5,4.6137]
[1743324118829,2.45704,1844.6,1844.5,5.6983]
[1743324120030,2.45704,1844.6,1844.5,2.4905]
[1743324120230,2.45704,1844.6,1844.5,5.6983]
[1743324120433,2.45704,1844.6,1844.5,4.6137]
[1743324121831,2.45704,1844.6,1844.5,3.2078]
[1743324122129,1.0846,1844.5,1844.4,3.433]
[1743324122329,1.08466,1844.4,1844.3,8.0247]
[1743324122529,1.83076,1844.4,1844.3,8.0247]
[1743324122725,3.23206,1844.4,1844.3,4.5907]
[1743324123032,3.23206,1844.4,1844.3,8.0237]
[1743324125231,3.23206,1844.4,1844.3,4.5907]
[1743324128335,3.23206,1844.4,1844.3,8.0227]
[1743324130336,3.23206,1844.4,1844.3,8.0217]
[1743324134548,3.23206,1844.4,1844.3,4.8139]
[1743324134849,3.23206,1844.4,1844.3,8.0217]
[1743324135043,3.23206,1844.4,1844.3,4.8139]
[1743324135244,3.23206,1844.4,1844.3,8.0217]
[1743324138049,3.23206,1844.4,1844.3,4.5907]
[1743324146553,1.08466,1844.4,1844.3,4.5907]
[1743324146754,1.08466,1844.4,1844.3,5.67542]
[1743324147056,1.08447,1844.8,1844.3,6.542]
[1743324147260,1.08447,1844.8,1844.6,4.29231]
[1743324147456,2.53087,1844.8,1844.7,1.398]
[1743324150661,1.4464,1844.8,1844.7,2.48249]
[1743324150959,2.53083,1844.8,1844.7,1.398]
[1743324151662,2.53083,1844.8,1844.7,4.6058]
[1743324155165,2.53083,1844.8,1844.7,1.398]
[1743324155368,2.53083,1844.8,1844.7,4.6058]
[1743324157469,2.53083,1844.8,1844.7,3.2078]
[1743324157764,1.0846,1844.5,1844.4,4.904]
[1743324157970,1.0846,1844.5,1844.4,8.1118]
[1743324158560,1.0846,1844.5,1844.4,4.6828]
[1743324160674,1.0846,1844.5,1844.4,3.2078]
[1743324161076,1.8142,1844.5,1844.4,3.2078]
[1743324161776,1.08466,1844.4,1844.3,3.429]
[1743324162069,1.08466,1844.4,1844.2,4.837]
[1743324162070,1.08472,1844.3,1844.2,4.837]
[1743324162564,2.58422,1844.3,1844.2,4.837]
[1743324164069,2.58422,1844.3,1844.2,1.408]
[1743324181289,1.08478,1844.2,1844.1,6.6368]
[1743324181589,3.18048,1844.2,1844.1,6.6368]
[1743324182088,3.18048,1844.2,1844.1,8.0445]
[1743324187293,1.08484,1844.1,1844.0,3.429]